Workbook

Sheet TOTAL MES TIPO
B2: LLAMADAS
B3: DÍA | E3: ATENDIDAS | F3: RECIBIDAS
B4: =CONCATENATE("SEMANA ",INT((DATE(YEAR('[1]Raw Data - Interacciones'!$C$2),MONTH('[1]Raw Data - Interacciones'!$C$2),DAY('[1]Raw Data - Interacciones'!$C$2))-DATE(YEAR(DATE(YEAR('[1]Raw Data - Interacciones'!$C$2),MONTH('[1]Raw Data - Interacciones'!$C$2),DAY('[1]Raw Data - Interacciones'!$C$2))-WEEKDAY(DATE(YEAR('[1]Raw Data - Interacciones'!$C$2),MONTH('[1]Raw Data - Interacciones'!$C$2),DAY('[1]Raw Data - Interacciones'!$C$2))-1)+4),1,3)+WEEKDAY(DATE(YEAR(DATE(YEAR('[1]Raw Data - Interacciones'!$C$2),MONTH('[1]Raw Data - Interacciones'!$C$2),DAY('[1]Raw Data - Interacciones'!$C$2))-WEEKDAY(DATE(YEAR('[1]Raw Data - Interacciones'!$C$2),MONTH('[1]Raw Data - Interacciones'!$C$2),DAY('[1]Raw Data - Interacciones'!$C$2))-1)+4),1,3))+5)/7)) -> SEMANA 22 | C4: =IF(WEEKDAY(DATE(YEAR('[1]Raw Data - Interacciones'!$C$7),MONTH('[1]Raw Data - Interacciones'!$C$7),1),2)=1,1,"") ->  | D4: LUNES | E4: =SUMIFS('[1]Raw Data - Interacciones'!$E$2:$E$40000,'[1]Raw Data - Interacciones'!$C$2:$C$40000,DATE(YEAR('[1]Raw Data - Interacciones'!$C$7),MONTH('[1]Raw Data - Interacciones'!$C$7),$C4), '[1]Raw Data - Interacciones'!$B$2:$B$40000,"Telefonía")+ SUMPRODUCT((DAY('[1]Raw Data - HISTORICO'!$E$2:$E$40000)=C4)*('[1]Raw Data - HISTORICO'!$AF$2:$AF$40000)*('[1]Raw Data - HISTORICO'!$G$2:$G$40000 ="UR_KONTSORTZIO")) -> 0 | F4: =SUMIFS('[1]Raw Data - Interacciones'!$D$2:$D$40000,'[1]Raw Data - Interacciones'!$C$2:$C$40000,DATE(YEAR('[1]Raw Data - Interacciones'!$C$7),MONTH('[1]Raw Data - Interacciones'!$C$7),$C4), '[1]Raw Data - Interacciones'!$B$2:$B$40000,"Telefonía") -> 0
C5: =IF(WEEKDAY(DATE(YEAR('[1]Raw Data - Interacciones'!$C$7),MONTH('[1]Raw Data - Interacciones'!$C$7),1),2)=2,1,IF($C4<>"",$C4+1,"")) ->  | D5: MARTES | E5: =SUMIFS('[1]Raw Data - Interacciones'!$E$2:$E$40000,'[1]Raw Data - Interacciones'!$C$2:$C$40000,DATE(YEAR('[1]Raw Data - Interacciones'!$C$7),MONTH('[1]Raw Data - Interacciones'!$C$7),$C5), '[1]Raw Data - Interacciones'!$B$2:$B$40000,"Telefonía")+ SUMPRODUCT((DAY('[1]Raw Data - HISTORICO'!$E$2:$E$40000)=C5)*('[1]Raw Data - HISTORICO'!$AF$2:$AF$40000)*('[1]Raw Data - HISTORICO'!$G$2:$G$40000 ="UR_KONTSORTZIO")) -> 0 | F5: =SUMIFS('[1]Raw Data - Interacciones'!$D$2:$D$40000,'[1]Raw Data - Interacciones'!$C$2:$C$40000,DATE(YEAR('[1]Raw Data - Interacciones'!$C$7),MONTH('[1]Raw Data - Interacciones'!$C$7),$C5), '[1]Raw Data - Interacciones'!$B$2:$B$40000,"Telefonía") -> 0
C6: =IF(WEEKDAY(DATE(YEAR('[1]Raw Data - Interacciones'!$C$7),MONTH('[1]Raw Data - Interacciones'!$C$7),1),2)=3,1,IF($C5<>"",$C5+1,"")) ->  | D6: MIÉRCOLES | E6: =SUMIFS('[1]Raw Data - Interacciones'!$E$2:$E$40000,'[1]Raw Data - Interacciones'!$C$2:$C$40000,DATE(YEAR('[1]Raw Data - Interacciones'!$C$7),MONTH('[1]Raw Data - Interacciones'!$C$7),$C6), '[1]Raw Data - Interacciones'!$B$2:$B$40000,"Telefonía")+ SUMPRODUCT((DAY('[1]Raw Data - HISTORICO'!$E$2:$E$40000)=C6)*('[1]Raw Data - HISTORICO'!$AF$2:$AF$40000)*('[1]Raw Data - HISTORICO'!$G$2:$G$40000 ="UR_KONTSORTZIO")) -> 0 | F6: =SUMIFS('[1]Raw Data - Interacciones'!$D$2:$D$40000,'[1]Raw Data - Interacciones'!$C$2:$C$40000,DATE(YEAR('[1]Raw Data - Interacciones'!$C$7),MONTH('[1]Raw Data - Interacciones'!$C$7),$C6), '[1]Raw Data - Interacciones'!$B$2:$B$40000,"Telefonía") -> 0
C7: =IF(WEEKDAY(DATE(YEAR('[1]Raw Data - Interacciones'!$C$7),MONTH('[1]Raw Data - Interacciones'!$C$7),1),2)=4,1,IF($C6<>"",$C6+1,"")) ->  | D7: JUEVES | E7: =SUMIFS('[1]Raw Data - Interacciones'!$E$2:$E$40000,'[1]Raw Data - Interacciones'!$C$2:$C$40000,DATE(YEAR('[1]Raw Data - Interacciones'!$C$7),MONTH('[1]Raw Data - Interacciones'!$C$7),$C7), '[1]Raw Data - Interacciones'!$B$2:$B$40000,"Telefonía")+ SUMPRODUCT((DAY('[1]Raw Data - HISTORICO'!$E$2:$E$40000)=C7)*('[1]Raw Data - HISTORICO'!$AF$2:$AF$40000)*('[1]Raw Data - HISTORICO'!$G$2:$G$40000 ="UR_KONTSORTZIO")) -> 0 | F7: =SUMIFS('[1]Raw Data - Interacciones'!$D$2:$D$40000,'[1]Raw Data - Interacciones'!$C$2:$C$40000,DATE(YEAR('[1]Raw Data - Interacciones'!$C$7),MONTH('[1]Raw Data - Interacciones'!$C$7),$C7), '[1]Raw Data - Interacciones'!$B$2:$B$40000,"Telefonía") -> 0
C8: =IF(WEEKDAY(DATE(YEAR('[1]Raw Data - Interacciones'!$C$7),MONTH('[1]Raw Data - Interacciones'!$C$7),1),2)=5,1,IF($C7<>"",$C7+1,"")) ->  | D8: VIERNES | E8: =SUMIFS('[1]Raw Data - Interacciones'!$E$2:$E$40000,'[1]Raw Data - Interacciones'!$C$2:$C$40000,DATE(YEAR('[1]Raw Data - Interacciones'!$C$7),MONTH('[1]Raw Data - Interacciones'!$C$7),$C8), '[1]Raw Data - Interacciones'!$B$2:$B$40000,"Telefonía")+ SUMPRODUCT((DAY('[1]Raw Data - HISTORICO'!$E$2:$E$40000)=C8)*('[1]Raw Data - HISTORICO'!$AF$2:$AF$40000)*('[1]Raw Data - HISTORICO'!$G$2:$G$40000 ="UR_KONTSORTZIO")) -> 0 | F8: =SUMIFS('[1]Raw Data - Interacciones'!$D$2:$D$40000,'[1]Raw Data - Interacciones'!$C$2:$C$40000,DATE(YEAR('[1]Raw Data - Interacciones'!$C$7),MONTH('[1]Raw Data - Interacciones'!$C$7),$C8), '[1]Raw Data - Interacciones'!$B$2:$B$40000,"Telefonía") -> 0
C9: =IF(WEEKDAY(DATE(YEAR('[1]Raw Data - Interacciones'!$C$7),MONTH('[1]Raw Data - Interacciones'!$C$7),1),2)=6,1,IF($C8<>"",$C8+1,"")) -> 1 | D9: SABADO | E9: =SUMIFS('[1]Raw Data - Interacciones'!$E$2:$E$40000,'[1]Raw Data - Interacciones'!$C$2:$C$40000,DATE(YEAR('[1]Raw Data - Interacciones'!$C$7),MONTH('[1]Raw Data - Interacciones'!$C$7),$C9), '[1]Raw Data - Interacciones'!$B$2:$B$40000,"Telefonía")+ SUMPRODUCT((DAY('[1]Raw Data - HISTORICO'!$E$2:$E$40000)=C9)*('[1]Raw Data - HISTORICO'!$AF$2:$AF$40000)*('[1]Raw Data - HISTORICO'!$G$2:$G$40000 ="UR_KONTSORTZIO")) -> 16 | F9: =SUMIFS('[1]Raw Data - Interacciones'!$D$2:$D$40000,'[1]Raw Data - Interacciones'!$C$2:$C$40000,DATE(YEAR('[1]Raw Data - Interacciones'!$C$7),MONTH('[1]Raw Data - Interacciones'!$C$7),$C9), '[1]Raw Data - Interacciones'!$B$2:$B$40000,"Telefonía") -> 20
C10: =IF(WEEKDAY(DATE(YEAR('[1]Raw Data - Interacciones'!$C$7),MONTH('[1]Raw Data - Interacciones'!$C$7),1),2)=7,1,IF($C9<>"",$C9+1,"")) -> 2 | D10: DOMINGO | E10: =SUMIFS('[1]Raw Data - Interacciones'!$E$2:$E$40000,'[1]Raw Data - Interacciones'!$C$2:$C$40000,DATE(YEAR('[1]Raw Data - Interacciones'!$C$7),MONTH('[1]Raw Data - Interacciones'!$C$7),$C10), '[1]Raw Data - Interacciones'!$B$2:$B$40000,"Telefonía")+ SUMPRODUCT((DAY('[1]Raw Data - HISTORICO'!$E$2:$E$40000)=C10)*('[1]Raw Data - HISTORICO'!$AF$2:$AF$40000)*('[1]Raw Data - HISTORICO'!$G$2:$G$40000 ="UR_KONTSORTZIO")) -> 8 | F10: =SUMIFS('[1]Raw Data - Interacciones'!$D$2:$D$40000,'[1]Raw Data - Interacciones'!$C$2:$C$40000,DATE(YEAR('[1]Raw Data - Interacciones'!$C$7),MONTH('[1]Raw Data - Interacciones'!$C$7),$C10), '[1]Raw Data - Interacciones'!$B$2:$B$40000,"Telefonía") -> 9
B11: TOTAL SEMANA | E11: =SUM(E4:E10) -> 24 | F11: =SUM(F4:F10) -> 29
B12: =CONCATENATE("SEMANA ",INT((DATE(YEAR('[1]Raw Data - Interacciones'!$C$2),MONTH('[1]Raw Data - Interacciones'!$C$2),DAY('[1]Raw Data - Interacciones'!$C$2))-DATE(YEAR(DATE(YEAR('[1]Raw Data - Interacciones'!$C$2),MONTH('[1]Raw Data - Interacciones'!$C$2),DAY('[1]Raw Data - Interacciones'!$C$2))-WEEKDAY(DATE(YEAR('[1]Raw Data - Interacciones'!$C$2),MONTH('[1]Raw Data - Interacciones'!$C$2),DAY('[1]Raw Data - Interacciones'!$C$2))-1)+4),1,3)+WEEKDAY(DATE(YEAR(DATE(YEAR('[1]Raw Data - Interacciones'!$C$2),MONTH('[1]Raw Data - Interacciones'!$C$2),DAY('[1]Raw Data - Interacciones'!$C$2))-WEEKDAY(DATE(YEAR('[1]Raw Data - Interacciones'!$C$2),MONTH('[1]Raw Data - Interacciones'!$C$2),DAY('[1]Raw Data - Interacciones'!$C$2))-1)+4),1,3))+5)/7)+1) -> SEMANA 23 | C12: =C10+1 -> 3 | D12: LUNES | E12: 230 | F12: =SUMIFS('[1]Raw Data - Interacciones'!$D$2:$D$40000,'[1]Raw Data - Interacciones'!$C$2:$C$40000,DATE(YEAR('[1]Raw Data - Interacciones'!$C$7),MONTH('[1]Raw Data - Interacciones'!$C$7),$C12), '[1]Raw Data - Interacciones'!$B$2:$B$40000,"Telefonía") -> 235
C13: =C12+1 -> 4 | D13: MARTES | E13: 267 | F13: =SUMIFS('[1]Raw Data - Interacciones'!$D$2:$D$40000,'[1]Raw Data - Interacciones'!$C$2:$C$40000,DATE(YEAR('[1]Raw Data - Interacciones'!$C$7),MONTH('[1]Raw Data - Interacciones'!$C$7),$C13), '[1]Raw Data - Interacciones'!$B$2:$B$40000,"Telefonía") -> 278
C14: 5 | D14: MIÉRCOLES | E14: =SUMIFS('[1]Raw Data - Interacciones'!$E$2:$E$40000,'[1]Raw Data - Interacciones'!$C$2:$C$40000,DATE(YEAR('[1]Raw Data - Interacciones'!$C$7),MONTH('[1]Raw Data - Interacciones'!$C$7),$C14), '[1]Raw Data - Interacciones'!$B$2:$B$40000,"Telefonía")+ SUMPRODUCT((DAY('[1]Raw Data - HISTORICO'!$E$2:$E$40000)=C14)*('[1]Raw Data - HISTORICO'!$AF$2:$AF$40000)*('[1]Raw Data - HISTORICO'!$G$2:$G$40000 ="UR_KONTSORTZIO")) -> 219 | F14: =SUMIFS('[1]Raw Data - Interacciones'!$D$2:$D$40000,'[1]Raw Data - Interacciones'!$C$2:$C$40000,DATE(YEAR('[1]Raw Data - Interacciones'!$C$7),MONTH('[1]Raw Data - Interacciones'!$C$7),$C14), '[1]Raw Data - Interacciones'!$B$2:$B$40000,"Telefonía") -> 229
C15: 6 | D15: JUEVES | E15: 208 | F15: =SUMIFS('[1]Raw Data - Interacciones'!$D$2:$D$40000,'[1]Raw Data - Interacciones'!$C$2:$C$40000,DATE(YEAR('[1]Raw Data - Interacciones'!$C$7),MONTH('[1]Raw Data - Interacciones'!$C$7),$C15), '[1]Raw Data - Interacciones'!$B$2:$B$40000,"Telefonía") -> 214
C16: 7 | D16: VIERNES | E16: =SUMIFS('[1]Raw Data - Interacciones'!$E$2:$E$40000,'[1]Raw Data - Interacciones'!$C$2:$C$40000,DATE(YEAR('[1]Raw Data - Interacciones'!$C$7),MONTH('[1]Raw Data - Interacciones'!$C$7),$C16), '[1]Raw Data - Interacciones'!$B$2:$B$40000,"Telefonía")+ SUMPRODUCT((DAY('[1]Raw Data - HISTORICO'!$E$2:$E$40000)=C16)*('[1]Raw Data - HISTORICO'!$AF$2:$AF$40000)*('[1]Raw Data - HISTORICO'!$G$2:$G$40000 ="UR_KONTSORTZIO")) -> 157 | F16: =SUMIFS('[1]Raw Data - Interacciones'!$D$2:$D$40000,'[1]Raw Data - Interacciones'!$C$2:$C$40000,DATE(YEAR('[1]Raw Data - Interacciones'!$C$7),MONTH('[1]Raw Data - Interacciones'!$C$7),$C16), '[1]Raw Data - Interacciones'!$B$2:$B$40000,"Telefonía") -> 160
C17: 8 | D17: SABADO | E17: =SUMIFS('[1]Raw Data - Interacciones'!$E$2:$E$40000,'[1]Raw Data - Interacciones'!$C$2:$C$40000,DATE(YEAR('[1]Raw Data - Interacciones'!$C$7),MONTH('[1]Raw Data - Interacciones'!$C$7),$C17), '[1]Raw Data - Interacciones'!$B$2:$B$40000,"Telefonía")+ SUMPRODUCT((DAY('[1]Raw Data - HISTORICO'!$E$2:$E$40000)=C17)*('[1]Raw Data - HISTORICO'!$AF$2:$AF$40000)*('[1]Raw Data - HISTORICO'!$G$2:$G$40000 ="UR_KONTSORTZIO")) -> 21 | F17: =SUMIFS('[1]Raw Data - Interacciones'!$D$2:$D$40000,'[1]Raw Data - Interacciones'!$C$2:$C$40000,DATE(YEAR('[1]Raw Data - Interacciones'!$C$7),MONTH('[1]Raw Data - Interacciones'!$C$7),$C17), '[1]Raw Data - Interacciones'!$B$2:$B$40000,"Telefonía") -> 26
C18: 9 | D18: DOMINGO | E18: =SUMIFS('[1]Raw Data - Interacciones'!$E$2:$E$40000,'[1]Raw Data - Interacciones'!$C$2:$C$40000,DATE(YEAR('[1]Raw Data - Interacciones'!$C$7),MONTH('[1]Raw Data - Interacciones'!$C$7),$C18), '[1]Raw Data - Interacciones'!$B$2:$B$40000,"Telefonía")+ SUMPRODUCT((DAY('[1]Raw Data - HISTORICO'!$E$2:$E$40000)=C18)*('[1]Raw Data - HISTORICO'!$AF$2:$AF$40000)*('[1]Raw Data - HISTORICO'!$G$2:$G$40000 ="UR_KONTSORTZIO")) -> 11 | F18: =SUMIFS('[1]Raw Data - Interacciones'!$D$2:$D$40000,'[1]Raw Data - Interacciones'!$C$2:$C$40000,DATE(YEAR('[1]Raw Data - Interacciones'!$C$7),MONTH('[1]Raw Data - Interacciones'!$C$7),$C18), '[1]Raw Data - Interacciones'!$B$2:$B$40000,"Telefonía") -> 17
B19: TOTAL SEMANA | E19: =SUM(E12:E18) -> 1113 | F19: =SUM(F12:F18) -> 1159
B20: =CONCATENATE("SEMANA ",INT((DATE(YEAR('[1]Raw Data - Interacciones'!$C$2),MONTH('[1]Raw Data - Interacciones'!$C$2),DAY('[1]Raw Data - Interacciones'!$C$2))-DATE(YEAR(DATE(YEAR('[1]Raw Data - Interacciones'!$C$2),MONTH('[1]Raw Data - Interacciones'!$C$2),DAY('[1]Raw Data - Interacciones'!$C$2))-WEEKDAY(DATE(YEAR('[1]Raw Data - Interacciones'!$C$2),MONTH('[1]Raw Data - Interacciones'!$C$2),DAY('[1]Raw Data - Interacciones'!$C$2))-1)+4),1,3)+WEEKDAY(DATE(YEAR(DATE(YEAR('[1]Raw Data - Interacciones'!$C$2),MONTH('[1]Raw Data - Interacciones'!$C$2),DAY('[1]Raw Data - Interacciones'!$C$2))-WEEKDAY(DATE(YEAR('[1]Raw Data - Interacciones'!$C$2),MONTH('[1]Raw Data - Interacciones'!$C$2),DAY('[1]Raw Data - Interacciones'!$C$2))-1)+4),1,3))+5)/7)+2) -> SEMANA 24 | C20: =C18+1 -> 10 | D20: LUNES | E20: =SUMIFS('[1]Raw Data - Interacciones'!$E$2:$E$40000,'[1]Raw Data - Interacciones'!$C$2:$C$40000,DATE(YEAR('[1]Raw Data - Interacciones'!$C$7),MONTH('[1]Raw Data - Interacciones'!$C$7),$C20), '[1]Raw Data - Interacciones'!$B$2:$B$40000,"Telefonía")+ SUMPRODUCT((DAY('[1]Raw Data - HISTORICO'!$E$2:$E$40000)=C20)*('[1]Raw Data - HISTORICO'!$AF$2:$AF$40000)*('[1]Raw Data - HISTORICO'!$G$2:$G$40000 ="UR_KONTSORTZIO")) -> 254 | F20: =SUMIFS('[1]Raw Data - Interacciones'!$D$2:$D$40000,'[1]Raw Data - Interacciones'!$C$2:$C$40000,DATE(YEAR('[1]Raw Data - Interacciones'!$C$7),MONTH('[1]Raw Data - Interacciones'!$C$7),$C20), '[1]Raw Data - Interacciones'!$B$2:$B$40000,"Telefonía") -> 266
C21: =C20+1 -> 11 | D21: MARTES | E21: 241 | F21: =SUMIFS('[1]Raw Data - Interacciones'!$D$2:$D$40000,'[1]Raw Data - Interacciones'!$C$2:$C$40000,DATE(YEAR('[1]Raw Data - Interacciones'!$C$7),MONTH('[1]Raw Data - Interacciones'!$C$7),$C21), '[1]Raw Data - Interacciones'!$B$2:$B$40000,"Telefonía") -> 255
C22: 12 | D22: MIÉRCOLES | E22: 228 | F22: =SUMIFS('[1]Raw Data - Interacciones'!$D$2:$D$40000,'[1]Raw Data - Interacciones'!$C$2:$C$40000,DATE(YEAR('[1]Raw Data - Interacciones'!$C$7),MONTH('[1]Raw Data - Interacciones'!$C$7),$C22), '[1]Raw Data - Interacciones'!$B$2:$B$40000,"Telefonía") -> 237
C23: 13 | D23: JUEVES | E23: =SUMIFS('[1]Raw Data - Interacciones'!$E$2:$E$40000,'[1]Raw Data - Interacciones'!$C$2:$C$40000,DATE(YEAR('[1]Raw Data - Interacciones'!$C$7),MONTH('[1]Raw Data - Interacciones'!$C$7),$C23), '[1]Raw Data - Interacciones'!$B$2:$B$40000,"Telefonía")+ SUMPRODUCT((DAY('[1]Raw Data - HISTORICO'!$E$2:$E$40000)=C23)*('[1]Raw Data - HISTORICO'!$AF$2:$AF$40000)*('[1]Raw Data - HISTORICO'!$G$2:$G$40000 ="UR_KONTSORTZIO")) -> 157 | F23: =SUMIFS('[1]Raw Data - Interacciones'!$D$2:$D$40000,'[1]Raw Data - Interacciones'!$C$2:$C$40000,DATE(YEAR('[1]Raw Data - Interacciones'!$C$7),MONTH('[1]Raw Data - Interacciones'!$C$7),$C23), '[1]Raw Data - Interacciones'!$B$2:$B$40000,"Telefonía") -> 160
C24: 14 | D24: VIERNES | E24: =SUMIFS('[1]Raw Data - Interacciones'!$E$2:$E$40000,'[1]Raw Data - Interacciones'!$C$2:$C$40000,DATE(YEAR('[1]Raw Data - Interacciones'!$C$7),MONTH('[1]Raw Data - Interacciones'!$C$7),$C24), '[1]Raw Data - Interacciones'!$B$2:$B$40000,"Telefonía")+ SUMPRODUCT((DAY('[1]Raw Data - HISTORICO'!$E$2:$E$40000)=C24)*('[1]Raw Data - HISTORICO'!$AF$2:$AF$40000)*('[1]Raw Data - HISTORICO'!$G$2:$G$40000 ="UR_KONTSORTZIO")) -> 141 | F24: =SUMIFS('[1]Raw Data - Interacciones'!$D$2:$D$40000,'[1]Raw Data - Interacciones'!$C$2:$C$40000,DATE(YEAR('[1]Raw Data - Interacciones'!$C$7),MONTH('[1]Raw Data - Interacciones'!$C$7),$C24), '[1]Raw Data - Interacciones'!$B$2:$B$40000,"Telefonía") -> 143
C25: 15 | D25: SABADO | E25: =SUMIFS('[1]Raw Data - Interacciones'!$E$2:$E$40000,'[1]Raw Data - Interacciones'!$C$2:$C$40000,DATE(YEAR('[1]Raw Data - Interacciones'!$C$7),MONTH('[1]Raw Data - Interacciones'!$C$7),$C25), '[1]Raw Data - Interacciones'!$B$2:$B$40000,"Telefonía")+ SUMPRODUCT((DAY('[1]Raw Data - HISTORICO'!$E$2:$E$40000)=C25)*('[1]Raw Data - HISTORICO'!$AF$2:$AF$40000)*('[1]Raw Data - HISTORICO'!$G$2:$G$40000 ="UR_KONTSORTZIO")) -> 19 | F25: =SUMIFS('[1]Raw Data - Interacciones'!$D$2:$D$40000,'[1]Raw Data - Interacciones'!$C$2:$C$40000,DATE(YEAR('[1]Raw Data - Interacciones'!$C$7),MONTH('[1]Raw Data - Interacciones'!$C$7),$C25), '[1]Raw Data - Interacciones'!$B$2:$B$40000,"Telefonía") -> 20
C26: 16 | D26: DOMINGO | E26: 16 | F26: =SUMIFS('[1]Raw Data - Interacciones'!$D$2:$D$40000,'[1]Raw Data - Interacciones'!$C$2:$C$40000,DATE(YEAR('[1]Raw Data - Interacciones'!$C$7),MONTH('[1]Raw Data - Interacciones'!$C$7),$C26), '[1]Raw Data - Interacciones'!$B$2:$B$40000,"Telefonía") -> 20
B27: TOTAL SEMANA | E27: =SUM(E20:E26) -> 1056 | F27: =SUM(F20:F26) -> 1101
B28: =CONCATENATE("SEMANA ",INT((DATE(YEAR('[1]Raw Data - Interacciones'!$C$2),MONTH('[1]Raw Data - Interacciones'!$C$2),DAY('[1]Raw Data - Interacciones'!$C$2))-DATE(YEAR(DATE(YEAR('[1]Raw Data - Interacciones'!$C$2),MONTH('[1]Raw Data - Interacciones'!$C$2),DAY('[1]Raw Data - Interacciones'!$C$2))-WEEKDAY(DATE(YEAR('[1]Raw Data - Interacciones'!$C$2),MONTH('[1]Raw Data - Interacciones'!$C$2),DAY('[1]Raw Data - Interacciones'!$C$2))-1)+4),1,3)+WEEKDAY(DATE(YEAR(DATE(YEAR('[1]Raw Data - Interacciones'!$C$2),MONTH('[1]Raw Data - Interacciones'!$C$2),DAY('[1]Raw Data - Interacciones'!$C$2))-WEEKDAY(DATE(YEAR('[1]Raw Data - Interacciones'!$C$2),MONTH('[1]Raw Data - Interacciones'!$C$2),DAY('[1]Raw Data - Interacciones'!$C$2))-1)+4),1,3))+5)/7)+3) -> SEMANA 25 | C28: =C26+1 -> 17 | D28: LUNES | E28: =SUMIFS('[1]Raw Data - Interacciones'!$E$2:$E$40000,'[1]Raw Data - Interacciones'!$C$2:$C$40000,DATE(YEAR('[1]Raw Data - Interacciones'!$C$7),MONTH('[1]Raw Data - Interacciones'!$C$7),$C28), '[1]Raw Data - Interacciones'!$B$2:$B$40000,"Telefonía")+ SUMPRODUCT((DAY('[1]Raw Data - HISTORICO'!$E$2:$E$40000)=C28)*('[1]Raw Data - HISTORICO'!$AF$2:$AF$40000)*('[1]Raw Data - HISTORICO'!$G$2:$G$40000 ="UR_KONTSORTZIO")) -> 248 | F28: =SUMIFS('[1]Raw Data - Interacciones'!$D$2:$D$40000,'[1]Raw Data - Interacciones'!$C$2:$C$40000,DATE(YEAR('[1]Raw Data - Interacciones'!$C$7),MONTH('[1]Raw Data - Interacciones'!$C$7),$C28), '[1]Raw Data - Interacciones'!$B$2:$B$40000,"Telefonía") -> 277
C29: =C28+1 -> 18 | D29: MARTES | E29: =SUMIFS('[1]Raw Data - Interacciones'!$E$2:$E$40000,'[1]Raw Data - Interacciones'!$C$2:$C$40000,DATE(YEAR('[1]Raw Data - Interacciones'!$C$7),MONTH('[1]Raw Data - Interacciones'!$C$7),$C29), '[1]Raw Data - Interacciones'!$B$2:$B$40000,"Telefonía")+ SUMPRODUCT((DAY('[1]Raw Data - HISTORICO'!$E$2:$E$40000)=C29)*('[1]Raw Data - HISTORICO'!$AF$2:$AF$40000)*('[1]Raw Data - HISTORICO'!$G$2:$G$40000 ="UR_KONTSORTZIO")) -> 163 | F29: =SUMIFS('[1]Raw Data - Interacciones'!$D$2:$D$40000,'[1]Raw Data - Interacciones'!$C$2:$C$40000,DATE(YEAR('[1]Raw Data - Interacciones'!$C$7),MONTH('[1]Raw Data - Interacciones'!$C$7),$C29), '[1]Raw Data - Interacciones'!$B$2:$B$40000,"Telefonía") -> 183
C30: 19 | D30: MIÉRCOLES | E30: 221 | F30: =SUMIFS('[1]Raw Data - Interacciones'!$D$2:$D$40000,'[1]Raw Data - Interacciones'!$C$2:$C$40000,DATE(YEAR('[1]Raw Data - Interacciones'!$C$7),MONTH('[1]Raw Data - Interacciones'!$C$7),$C30), '[1]Raw Data - Interacciones'!$B$2:$B$40000,"Telefonía") -> 248
C31: 20 | D31: JUEVES | E31: =SUMIFS('[1]Raw Data - Interacciones'!$E$2:$E$40000,'[1]Raw Data - Interacciones'!$C$2:$C$40000,DATE(YEAR('[1]Raw Data - Interacciones'!$C$7),MONTH('[1]Raw Data - Interacciones'!$C$7),$C31), '[1]Raw Data - Interacciones'!$B$2:$B$40000,"Telefonía")+ SUMPRODUCT((DAY('[1]Raw Data - HISTORICO'!$E$2:$E$40000)=C31)*('[1]Raw Data - HISTORICO'!$AF$2:$AF$40000)*('[1]Raw Data - HISTORICO'!$G$2:$G$40000 ="UR_KONTSORTZIO")) -> 232 | F31: =SUMIFS('[1]Raw Data - Interacciones'!$D$2:$D$40000,'[1]Raw Data - Interacciones'!$C$2:$C$40000,DATE(YEAR('[1]Raw Data - Interacciones'!$C$7),MONTH('[1]Raw Data - Interacciones'!$C$7),$C31), '[1]Raw Data - Interacciones'!$B$2:$B$40000,"Telefonía") -> 241
C32: 21 | D32: VIERNES | E32: 144 | F32: =SUMIFS('[1]Raw Data - Interacciones'!$D$2:$D$40000,'[1]Raw Data - Interacciones'!$C$2:$C$40000,DATE(YEAR('[1]Raw Data - Interacciones'!$C$7),MONTH('[1]Raw Data - Interacciones'!$C$7),$C32), '[1]Raw Data - Interacciones'!$B$2:$B$40000,"Telefonía") -> 155
C33: 22 | D33: SABADO | E33: =SUMIFS('[1]Raw Data - Interacciones'!$E$2:$E$40000,'[1]Raw Data - Interacciones'!$C$2:$C$40000,DATE(YEAR('[1]Raw Data - Interacciones'!$C$7),MONTH('[1]Raw Data - Interacciones'!$C$7),$C33), '[1]Raw Data - Interacciones'!$B$2:$B$40000,"Telefonía")+ SUMPRODUCT((DAY('[1]Raw Data - HISTORICO'!$E$2:$E$40000)=C33)*('[1]Raw Data - HISTORICO'!$AF$2:$AF$40000)*('[1]Raw Data - HISTORICO'!$G$2:$G$40000 ="UR_KONTSORTZIO")) -> 19 | F33: =SUMIFS('[1]Raw Data - Interacciones'!$D$2:$D$40000,'[1]Raw Data - Interacciones'!$C$2:$C$40000,DATE(YEAR('[1]Raw Data - Interacciones'!$C$7),MONTH('[1]Raw Data - Interacciones'!$C$7),$C33), '[1]Raw Data - Interacciones'!$B$2:$B$40000,"Telefonía") -> 21
C34: 23 | D34: DOMINGO | E34: =SUMIFS('[1]Raw Data - Interacciones'!$E$2:$E$40000,'[1]Raw Data - Interacciones'!$C$2:$C$40000,DATE(YEAR('[1]Raw Data - Interacciones'!$C$7),MONTH('[1]Raw Data - Interacciones'!$C$7),$C34), '[1]Raw Data - Interacciones'!$B$2:$B$40000,"Telefonía")+ SUMPRODUCT((DAY('[1]Raw Data - HISTORICO'!$E$2:$E$40000)=C34)*('[1]Raw Data - HISTORICO'!$AF$2:$AF$40000)*('[1]Raw Data - HISTORICO'!$G$2:$G$40000 ="UR_KONTSORTZIO")) -> 10 | F34: =SUMIFS('[1]Raw Data - Interacciones'!$D$2:$D$40000,'[1]Raw Data - Interacciones'!$C$2:$C$40000,DATE(YEAR('[1]Raw Data - Interacciones'!$C$7),MONTH('[1]Raw Data - Interacciones'!$C$7),$C34), '[1]Raw Data - Interacciones'!$B$2:$B$40000,"Telefonía") -> 12
B35: TOTAL SEMANA | E35: =SUM(E28:E34) -> 1037 | F35: =SUM(F28:F34) -> 1137
B36: =CONCATENATE("SEMANA ",INT((DATE(YEAR('[1]Raw Data - Interacciones'!$C$2),MONTH('[1]Raw Data - Interacciones'!$C$2),DAY('[1]Raw Data - Interacciones'!$C$2))-DATE(YEAR(DATE(YEAR('[1]Raw Data - Interacciones'!$C$2),MONTH('[1]Raw Data - Interacciones'!$C$2),DAY('[1]Raw Data - Interacciones'!$C$2))-WEEKDAY(DATE(YEAR('[1]Raw Data - Interacciones'!$C$2),MONTH('[1]Raw Data - Interacciones'!$C$2),DAY('[1]Raw Data - Interacciones'!$C$2))-1)+4),1,3)+WEEKDAY(DATE(YEAR(DATE(YEAR('[1]Raw Data - Interacciones'!$C$2),MONTH('[1]Raw Data - Interacciones'!$C$2),DAY('[1]Raw Data - Interacciones'!$C$2))-WEEKDAY(DATE(YEAR('[1]Raw Data - Interacciones'!$C$2),MONTH('[1]Raw Data - Interacciones'!$C$2),DAY('[1]Raw Data - Interacciones'!$C$2))-1)+4),1,3))+5)/7)+4) -> SEMANA 26 | C36: =IF(OR($C34=DAY(EOMONTH('[1]Raw Data - Interacciones'!$C$7,0)),$C34=""),"",$C34+1) -> 24 | D36: LUNES | E36: =SUMIFS('[1]Raw Data - Interacciones'!$E$2:$E$40000,'[1]Raw Data - Interacciones'!$C$2:$C$40000,DATE(YEAR('[1]Raw Data - Interacciones'!$C$7),MONTH('[1]Raw Data - Interacciones'!$C$7),$C36), '[1]Raw Data - Interacciones'!$B$2:$B$40000,"Telefonía")+ SUMPRODUCT((DAY('[1]Raw Data - HISTORICO'!$E$2:$E$40000)=C36)*('[1]Raw Data - HISTORICO'!$AF$2:$AF$40000)*('[1]Raw Data - HISTORICO'!$G$2:$G$40000 ="UR_KONTSORTZIO")) -> 164 | F36: =SUMIFS('[1]Raw Data - Interacciones'!$D$2:$D$40000,'[1]Raw Data - Interacciones'!$C$2:$C$40000,DATE(YEAR('[1]Raw Data - Interacciones'!$C$7),MONTH('[1]Raw Data - Interacciones'!$C$7),$C36), '[1]Raw Data - Interacciones'!$B$2:$B$40000,"Telefonía") -> 172
C37: =IF(OR($C36=DAY(EOMONTH('[1]Raw Data - Interacciones'!$C$7,0)),$C36=""),"",$C36+1) -> 25 | D37: MARTES | E37: 110 | F37: =SUMIFS('[1]Raw Data - Interacciones'!$D$2:$D$40000,'[1]Raw Data - Interacciones'!$C$2:$C$40000,DATE(YEAR('[1]Raw Data - Interacciones'!$C$7),MONTH('[1]Raw Data - Interacciones'!$C$7),$C37), '[1]Raw Data - Interacciones'!$B$2:$B$40000,"Telefonía") -> 120
C38: =IF(OR($C37=DAY(EOMONTH('[1]Raw Data - Interacciones'!$C$7,0)),$C37=""),"",$C37+1) -> 26 | D38: MIÉRCOLES | E38: 198 | F38: =SUMIFS('[1]Raw Data - Interacciones'!$D$2:$D$40000,'[1]Raw Data - Interacciones'!$C$2:$C$40000,DATE(YEAR('[1]Raw Data - Interacciones'!$C$7),MONTH('[1]Raw Data - Interacciones'!$C$7),$C38), '[1]Raw Data - Interacciones'!$B$2:$B$40000,"Telefonía") -> 214
C39: =IF(OR($C38=DAY(EOMONTH('[1]Raw Data - Interacciones'!$C$7,0)),$C38=""),"",$C38+1) -> 27 | D39: JUEVES | E39: =SUMIFS('[1]Raw Data - Interacciones'!$E$2:$E$40000,'[1]Raw Data - Interacciones'!$C$2:$C$40000,DATE(YEAR('[1]Raw Data - Interacciones'!$C$7),MONTH('[1]Raw Data - Interacciones'!$C$7),$C39), '[1]Raw Data - Interacciones'!$B$2:$B$40000,"Telefonía")+ SUMPRODUCT((DAY('[1]Raw Data - HISTORICO'!$E$2:$E$40000)=C39)*('[1]Raw Data - HISTORICO'!$AF$2:$AF$40000)*('[1]Raw Data - HISTORICO'!$G$2:$G$40000 ="UR_KONTSORTZIO")) -> 178 | F39: =SUMIFS('[1]Raw Data - Interacciones'!$D$2:$D$40000,'[1]Raw Data - Interacciones'!$C$2:$C$40000,DATE(YEAR('[1]Raw Data - Interacciones'!$C$7),MONTH('[1]Raw Data - Interacciones'!$C$7),$C39), '[1]Raw Data - Interacciones'!$B$2:$B$40000,"Telefonía") -> 185
C40: =IF(OR($C39=DAY(EOMONTH('[1]Raw Data - Interacciones'!$C$7,0)),$C39=""),"",$C39+1) -> 28 | D40: VIERNES | E40: 156 | F40: =SUMIFS('[1]Raw Data - Interacciones'!$D$2:$D$40000,'[1]Raw Data - Interacciones'!$C$2:$C$40000,DATE(YEAR('[1]Raw Data - Interacciones'!$C$7),MONTH('[1]Raw Data - Interacciones'!$C$7),$C40), '[1]Raw Data - Interacciones'!$B$2:$B$40000,"Telefonía") -> 166
C41: =IF(OR($C40=DAY(EOMONTH('[1]Raw Data - Interacciones'!$C$7,0)),$C40=""),"",$C40+1) -> 29 | D41: SABADO | E41: =SUMIFS('[1]Raw Data - Interacciones'!$E$2:$E$40000,'[1]Raw Data - Interacciones'!$C$2:$C$40000,DATE(YEAR('[1]Raw Data - Interacciones'!$C$7),MONTH('[1]Raw Data - Interacciones'!$C$7),$C41), '[1]Raw Data - Interacciones'!$B$2:$B$40000,"Telefonía")+ SUMPRODUCT((DAY('[1]Raw Data - HISTORICO'!$E$2:$E$40000)=C41)*('[1]Raw Data - HISTORICO'!$AF$2:$AF$40000)*('[1]Raw Data - HISTORICO'!$G$2:$G$40000 ="UR_KONTSORTZIO")) -> 17 | F41: =SUMIFS('[1]Raw Data - Interacciones'!$D$2:$D$40000,'[1]Raw Data - Interacciones'!$C$2:$C$40000,DATE(YEAR('[1]Raw Data - Interacciones'!$C$7),MONTH('[1]Raw Data - Interacciones'!$C$7),$C41), '[1]Raw Data - Interacciones'!$B$2:$B$40000,"Telefonía") -> 21
C42: =IF(OR($C41=DAY(EOMONTH('[1]Raw Data - Interacciones'!$C$7,0)),$C41=""),"",$C41+1) -> 30 | D42: DOMINGO | E42: 2 | F42: =SUMIFS('[1]Raw Data - Interacciones'!$D$2:$D$40000,'[1]Raw Data - Interacciones'!$C$2:$C$40000,DATE(YEAR('[1]Raw Data - Interacciones'!$C$7),MONTH('[1]Raw Data - Interacciones'!$C$7),$C42), '[1]Raw Data - Interacciones'!$B$2:$B$40000,"Telefonía") -> 0
B43: TOTAL SEMANA | E43: =SUM(E36:E42) -> 825 | F43: =SUM(F36:F42) -> 878
B44: =CONCATENATE("SEMANA ",INT((DATE(YEAR('[1]Raw Data - Interacciones'!$C$2),MONTH('[1]Raw Data - Interacciones'!$C$2),DAY('[1]Raw Data - Interacciones'!$C$2))-DATE(YEAR(DATE(YEAR('[1]Raw Data - Interacciones'!$C$2),MONTH('[1]Raw Data - Interacciones'!$C$2),DAY('[1]Raw Data - Interacciones'!$C$2))-WEEKDAY(DATE(YEAR('[1]Raw Data - Interacciones'!$C$2),MONTH('[1]Raw Data - Interacciones'!$C$2),DAY('[1]Raw Data - Interacciones'!$C$2))-1)+4),1,3)+WEEKDAY(DATE(YEAR(DATE(YEAR('[1]Raw Data - Interacciones'!$C$2),MONTH('[1]Raw Data - Interacciones'!$C$2),DAY('[1]Raw Data - Interacciones'!$C$2))-WEEKDAY(DATE(YEAR('[1]Raw Data - Interacciones'!$C$2),MONTH('[1]Raw Data - Interacciones'!$C$2),DAY('[1]Raw Data - Interacciones'!$C$2))-1)+4),1,3))+5)/7)+5) -> SEMANA 27 | C44: =IF(OR($C42=DAY(EOMONTH('[1]Raw Data - Interacciones'!$C$7,0)),$C42=""),"",$C42+1) ->  | D44: LUNES | E44: =SUMIFS('[1]Raw Data - Interacciones'!$E$2:$E$40000,'[1]Raw Data - Interacciones'!$C$2:$C$40000,DATE(YEAR('[1]Raw Data - Interacciones'!$C$7),MONTH('[1]Raw Data - Interacciones'!$C$7),$C44), '[1]Raw Data - Interacciones'!$B$2:$B$40000,"Telefonía")+ SUMPRODUCT((DAY('[1]Raw Data - HISTORICO'!$E$2:$E$40000)=C44)*('[1]Raw Data - HISTORICO'!$AF$2:$AF$40000)*('[1]Raw Data - HISTORICO'!$G$2:$G$40000 ="UR_KONTSORTZIO")) -> 0 | F44: =SUMIFS('[1]Raw Data - Interacciones'!$D$2:$D$40000,'[1]Raw Data - Interacciones'!$C$2:$C$40000,DATE(YEAR('[1]Raw Data - Interacciones'!$C$7),MONTH('[1]Raw Data - Interacciones'!$C$7),$C44), '[1]Raw Data - Interacciones'!$B$2:$B$40000,"Telefonía") -> 0
C45: =IF(OR($C44=DAY(EOMONTH('[1]Raw Data - Interacciones'!$C$7,0)),$C44=""),"",$C44+1) ->  | D45: MARTES | E45: =SUMIFS('[1]Raw Data - Interacciones'!$E$2:$E$40000,'[1]Raw Data - Interacciones'!$C$2:$C$40000,DATE(YEAR('[1]Raw Data - Interacciones'!$C$7),MONTH('[1]Raw Data - Interacciones'!$C$7),$C45), '[1]Raw Data - Interacciones'!$B$2:$B$40000,"Telefonía")+ SUMPRODUCT((DAY('[1]Raw Data - HISTORICO'!$E$2:$E$40000)=C45)*('[1]Raw Data - HISTORICO'!$AF$2:$AF$40000)*('[1]Raw Data - HISTORICO'!$G$2:$G$40000 ="UR_KONTSORTZIO")) -> 0 | F45: =SUMIFS('[1]Raw Data - Interacciones'!$D$2:$D$40000,'[1]Raw Data - Interacciones'!$C$2:$C$40000,DATE(YEAR('[1]Raw Data - Interacciones'!$C$7),MONTH('[1]Raw Data - Interacciones'!$C$7),$C45), '[1]Raw Data - Interacciones'!$B$2:$B$40000,"Telefonía") -> 0
C46: =IF(OR($C45=DAY(EOMONTH('[1]Raw Data - Interacciones'!$C$7,0)),$C45=""),"",$C45+1) ->  | D46: MIÉRCOLES | E46: =SUMIFS('[1]Raw Data - Interacciones'!$E$2:$E$40000,'[1]Raw Data - Interacciones'!$C$2:$C$40000,DATE(YEAR('[1]Raw Data - Interacciones'!$C$7),MONTH('[1]Raw Data - Interacciones'!$C$7),$C46), '[1]Raw Data - Interacciones'!$B$2:$B$40000,"Telefonía")+ SUMPRODUCT((DAY('[1]Raw Data - HISTORICO'!$E$2:$E$40000)=C46)*('[1]Raw Data - HISTORICO'!$AF$2:$AF$40000)*('[1]Raw Data - HISTORICO'!$G$2:$G$40000 ="UR_KONTSORTZIO")) -> 0 | F46: =SUMIFS('[1]Raw Data - Interacciones'!$D$2:$D$40000,'[1]Raw Data - Interacciones'!$C$2:$C$40000,DATE(YEAR('[1]Raw Data - Interacciones'!$C$7),MONTH('[1]Raw Data - Interacciones'!$C$7),$C46), '[1]Raw Data - Interacciones'!$B$2:$B$40000,"Telefonía") -> 0
C47: =IF(OR($C46=DAY(EOMONTH('[1]Raw Data - Interacciones'!$C$7,0)),$C46=""),"",$C46+1) ->  | D47: JUEVES | E47: =SUMIFS('[1]Raw Data - Interacciones'!$E$2:$E$40000,'[1]Raw Data - Interacciones'!$C$2:$C$40000,DATE(YEAR('[1]Raw Data - Interacciones'!$C$7),MONTH('[1]Raw Data - Interacciones'!$C$7),$C47), '[1]Raw Data - Interacciones'!$B$2:$B$40000,"Telefonía")+ SUMPRODUCT((DAY('[1]Raw Data - HISTORICO'!$E$2:$E$40000)=C47)*('[1]Raw Data - HISTORICO'!$AF$2:$AF$40000)*('[1]Raw Data - HISTORICO'!$G$2:$G$40000 ="UR_KONTSORTZIO")) -> 0 | F47: =SUMIFS('[1]Raw Data - Interacciones'!$D$2:$D$40000,'[1]Raw Data - Interacciones'!$C$2:$C$40000,DATE(YEAR('[1]Raw Data - Interacciones'!$C$7),MONTH('[1]Raw Data - Interacciones'!$C$7),$C47), '[1]Raw Data - Interacciones'!$B$2:$B$40000,"Telefonía") -> 0
C48: =IF(OR($C47=DAY(EOMONTH('[1]Raw Data - Interacciones'!$C$7,0)),$C47=""),"",$C47+1) ->  | D48: VIERNES | E48: =SUMIFS('[1]Raw Data - Interacciones'!$E$2:$E$40000,'[1]Raw Data - Interacciones'!$C$2:$C$40000,DATE(YEAR('[1]Raw Data - Interacciones'!$C$7),MONTH('[1]Raw Data - Interacciones'!$C$7),$C48), '[1]Raw Data - Interacciones'!$B$2:$B$40000,"Telefonía")+ SUMPRODUCT((DAY('[1]Raw Data - HISTORICO'!$E$2:$E$40000)=C48)*('[1]Raw Data - HISTORICO'!$AF$2:$AF$40000)*('[1]Raw Data - HISTORICO'!$G$2:$G$40000 ="UR_KONTSORTZIO")) -> 0 | F48: =SUMIFS('[1]Raw Data - Interacciones'!$D$2:$D$40000,'[1]Raw Data - Interacciones'!$C$2:$C$40000,DATE(YEAR('[1]Raw Data - Interacciones'!$C$7),MONTH('[1]Raw Data - Interacciones'!$C$7),$C48), '[1]Raw Data - Interacciones'!$B$2:$B$40000,"Telefonía") -> 0
C49: =IF(OR($C48=DAY(EOMONTH('[1]Raw Data - Interacciones'!$C$7,0)),$C48=""),"",$C48+1) ->  | D49: SABADO | E49: =SUMIFS('[1]Raw Data - Interacciones'!$E$2:$E$40000,'[1]Raw Data - Interacciones'!$C$2:$C$40000,DATE(YEAR('[1]Raw Data - Interacciones'!$C$7),MONTH('[1]Raw Data - Interacciones'!$C$7),$C49), '[1]Raw Data - Interacciones'!$B$2:$B$40000,"Telefonía")+ SUMPRODUCT((DAY('[1]Raw Data - HISTORICO'!$E$2:$E$40000)=C49)*('[1]Raw Data - HISTORICO'!$AF$2:$AF$40000)*('[1]Raw Data - HISTORICO'!$G$2:$G$40000 ="UR_KONTSORTZIO")) -> 0 | F49: =SUMIFS('[1]Raw Data - Interacciones'!$D$2:$D$40000,'[1]Raw Data - Interacciones'!$C$2:$C$40000,DATE(YEAR('[1]Raw Data - Interacciones'!$C$7),MONTH('[1]Raw Data - Interacciones'!$C$7),$C49), '[1]Raw Data - Interacciones'!$B$2:$B$40000,"Telefonía") -> 0
C50: =IF(OR($C49=DAY(EOMONTH('[1]Raw Data - Interacciones'!$C$7,0)),$C49=""),"",$C49+1) ->  | D50: DOMINGO | E50: =SUMIFS('[1]Raw Data - Interacciones'!$E$2:$E$40000,'[1]Raw Data - Interacciones'!$C$2:$C$40000,DATE(YEAR('[1]Raw Data - Interacciones'!$C$7),MONTH('[1]Raw Data - Interacciones'!$C$7),$C50), '[1]Raw Data - Interacciones'!$B$2:$B$40000,"Telefonía")+ SUMPRODUCT((DAY('[1]Raw Data - HISTORICO'!$E$2:$E$40000)=C50)*('[1]Raw Data - HISTORICO'!$AF$2:$AF$40000)*('[1]Raw Data - HISTORICO'!$G$2:$G$40000 ="UR_KONTSORTZIO")) -> 0 | F50: =SUMIFS('[1]Raw Data - Interacciones'!$D$2:$D$40000,'[1]Raw Data - Interacciones'!$C$2:$C$40000,DATE(YEAR('[1]Raw Data - Interacciones'!$C$7),MONTH('[1]Raw Data - Interacciones'!$C$7),$C50), '[1]Raw Data - Interacciones'!$B$2:$B$40000,"Telefonía") -> 0
B51: TOTAL SEMANA | E51: =SUM(E44:E50) -> 0 | F51: =SUM(F44:F50) -> 0
B52: TOTAL MES | E52: =SUM(E35+E27+E19+E11+E43+E51) -> 4055 | F52: =SUM(F35+F27+F19+F11+F43+F51) -> 4304

Sheet FRANJAS MES TIPO
B2: CC+BIDEO | C2: SÁBADO | D2: DOMINGO | E2: LUNES | F2: MARTES | G2: MIÉRCOLES | H2: JUEVES | I2: VIERNES | J2: SÁBADO | K2: DOMINGO | L2: LUNES | M2: MARTES | N2: MIÉRCOLES | O2: JUEVES | P2: VIERNES | Q2: SÁBADO | R2: DOMINGO | S2: LUNES | T2: MARTES | U2: MIÉRCOLES | V2: JUEVES | W2: VIERNES | X2: SÁBADO | Y2: DOMINGO | Z2: LUNES | AA2: MARTES | AB2: MIÉRCOLES | AC2: JUEVES | AD2: VIERNES | AE2: SÁBADO | AF2: DOMINGO | AG2: LUNES | AH2: TOTAL
B3: FRANJA | C3: 1 | D3: 2 | E3: 3 | F3: 4 | G3: 5 | H3: 6 | I3: 7 | J3: 8 | K3: 9 | L3: 10 | M3: 11 | N3: 12 | O3: 13 | P3: 14 | Q3: 15 | R3: 16 | S3: 17 | T3: 18 | U3: 19 | V3: 20 | W3: 21 | X3: 22 | Y3: 23 | Z3: 24 | AA3: 25 | AB3: 26 | AC3: 27 | AD3: 28 | AE3: 29 | AF3: 30 | AG3: 31
B4: 00:00:00 | C4: 0 | D4: 0 | E4: 0 | F4: 0 | G4: 0 | H4: 0 | I4: 0 | J4: 0 | K4: 0 | L4: 0 | M4: 0 | N4: 1 | O4: 0 | P4: 0 | Q4: 0 | R4: 0 | S4: 0 | T4: 0 | U4: 0 | V4: 0 | W4: 0 | X4: 0 | Y4: 0 | Z4: 0 | AA4: 0 | AB4: 0 | AC4: 0 | AD4: 0 | AE4: 0 | AF4: 0 | AG4: 0 | AH4: =SUM(C4:AG4) -> 1 | AI4: =AH4*$AI$28/$AH$28 -> 0.02%
B5: 01:00:00 | C5: 0 | D5: 0 | E5: 0 | F5: 0 | G5: 0 | H5: 0 | I5: 0 | J5: 0 | K5: 0 | L5: 0 | M5: 0 | N5: 1 | O5: 0 | P5: 0 | Q5: 0 | R5: 0 | S5: 0 | T5: 0 | U5: 0 | V5: 0 | W5: 0 | X5: 0 | Y5: 0 | Z5: 0 | AA5: 0 | AB5: 0 | AC5: 0 | AD5: 0 | AE5: 0 | AF5: 0 | AG5: 0 | AH5: =SUM(C5:AG5) -> 1 | AI5: =AH5*$AI$28/$AH$28 -> 0.02%
B6: 02:00:00 | C6: 0 | D6: 0 | E6: 0 | F6: 0 | G6: 0 | H6: 0 | I6: 0 | J6: 0 | K6: 0 | L6: 1 | M6: 0 | N6: 0 | O6: 0 | P6: 0 | Q6: 0 | R6: 1 | S6: 0 | T6: 0 | U6: 0 | V6: 0 | W6: 0 | X6: 0 | Y6: 0 | Z6: 0 | AA6: 0 | AB6: 0 | AC6: 0 | AD6: 0 | AE6: 0 | AF6: 0 | AG6: 0 | AH6: 2 | AI6: 0.05%
B7: 03:00:00 | C7: 0 | D7: 0 | E7: 0 | F7: 0 | G7: 0 | H7: 0 | I7: 0 | J7: 0 | K7: 0 | L7: 0 | M7: 0 | N7: 0 | O7: 0 | P7: 0 | Q7: 0 | R7: 0 | S7: 0 | T7: 0 | U7: 0 | V7: 0 | W7: 0 | X7: 0 | Y7: 0 | Z7: 0 | AA7: 0 | AB7: 0 | AC7: 0 | AD7: 0 | AE7: 0 | AF7: 0 | AG7: 0 | AH7: 0 | AI7: 0.00%
B8: 04:00:00 | C8: 0 | D8: 0 | E8: 0 | F8: 0 | G8: 0 | H8: 0 | I8: 0 | J8: 0 | K8: 0 | L8: 0 | M8: 0 | N8: 0 | O8: 0 | P8: 0 | Q8: 0 | R8: 0 | S8: 0 | T8: 0 | U8: 0 | V8: 0 | W8: 0 | X8: 0 | Y8: 0 | Z8: 0 | AA8: 0 | AB8: 0 | AC8: 0 | AD8: 0 | AE8: 0 | AF8: 0 | AG8: 0 | AH8: 0 | AI8: 0.00%
B9: 05:00:00 | C9: 0 | D9: 0 | E9: 0 | F9: 0 | G9: 0 | H9: 0 | I9: 0 | J9: 0 | K9: 0 | L9: 0 | M9: 0 | N9: 0 | O9: 0 | P9: 0 | Q9: 0 | R9: 0 | S9: 0 | T9: 0 | U9: 0 | V9: 0 | W9: 0 | X9: 0 | Y9: 0 | Z9: 0 | AA9: 0 | AB9: 0 | AC9: 0 | AD9: 0 | AE9: 0 | AF9: 0 | AG9: 0 | AH9: 0 | AI9: 0.00%
B10: 06:00:00 | C10: 2 | D10: 2 | E10: 1 | F10: 0 | G10: 0 | H10: 0 | I10: 0 | J10: 0 | K10: 1 | L10: 1 | M10: 0 | N10: 0 | O10: 0 | P10: 0 | Q10: 0 | R10: 0 | S10: 0 | T10: 0 | U10: 0 | V10: 0 | W10: 0 | X10: 0 | Y10: 0 | Z10: 0 | AA10: 0 | AB10: 0 | AC10: 0 | AD10: 0 | AE10: 0 | AF10: 0 | AG10: 0 | AH10: 7 | AI10: 0.17%
B11: 07:00:00 | C11: 0 | D11: 0 | E11: 1 | F11: 0 | G11: 0 | H11: 1 | I11: 0 | J11: 0 | K11: 0 | L11: 1 | M11: 3 | N11: 2 | O11: 0 | P11: 0 | Q11: 0 | R11: 0 | S11: 0 | T11: 0 | U11: 0 | V11: 1 | W11: 1 | X11: 0 | Y11: 0 | Z11: 0 | AA11: 0 | AB11: 2 | AC11: 1 | AD11: 0 | AE11: 0 | AF11: 0 | AG11: 0 | AH11: 13 | AI11: 0.32%
B12: 08:00:00 | C12: 1 | D12: 0 | E12: 10 | F12: 10 | G12: 10 | H12: 8 | I12: 7 | J12: 0 | K12: 0 | L12: 9 | M12: 6 | N12: 7 | O12: 6 | P12: 5 | Q12: 2 | R12: 3 | S12: 12 | T12: 5 | U12: 12 | V12: 4 | W12: 6 | X12: 0 | Y12: 0 | Z12: 7 | AA12: 2 | AB12: 4 | AC12: 5 | AD12: 1 | AE12: 0 | AF12: 0 | AG12: 0 | AH12: 142 | AI12: 3.50%
B13: 09:00:00 | C13: 3 | D13: 1 | E13: 29 | F13: 32 | G13: 35 | H13: 33 | I13: 26 | J13: 1 | K13: 1 | L13: 29 | M13: 34 | N13: 34 | O13: 30 | P13: 24 | Q13: 2 | R13: 1 | S13: 29 | T13: 29 | U13: 21 | V13: 10 | W13: 25 | X13: 1 | Y13: 1 | Z13: 15 | AA13: 11 | AB13: 22 | AC13: 18 | AD13: 21 | AE13: 0 | AF13: 0 | AG13: 0 | AH13: 518 | AI13: 12.77%
B14: 10:00:00 | C14: 4 | D14: 0 | E14: 35 | F14: 36 | G14: 28 | H14: 17 | I14: 30 | J14: 5 | K14: 0 | L14: 36 | M14: 42 | N14: 28 | O14: 18 | P14: 19 | Q14: 3 | R14: 2 | S14: 36 | T14: 21 | U14: 28 | V14: 24 | W14: 29 | X14: 6 | Y14: 1 | Z14: 27 | AA14: 19 | AB14: 26 | AC14: 45 | AD14: 28 | AE14: 2 | AF14: 0 | AG14: 0 | AH14: 595 | AI14: 14.67%
B15: 11:00:00 | C15: 2 | D15: 0 | E15: 40 | F15: 47 | G15: 27 | H15: 34 | I15: 20 | J15: 2 | K15: 1 | L15: 44 | M15: 31 | N15: 42 | O15: 18 | P15: 16 | Q15: 2 | R15: 1 | S15: 27 | T15: 20 | U15: 27 | V15: 29 | W15: 23 | X15: 2 | Y15: 1 | Z15: 26 | AA15: 9 | AB15: 25 | AC15: 16 | AD15: 28 | AE15: 4 | AF15: 0 | AG15: 0 | AH15: 564 | AI15: 13.91%
B16: 12:00:00 | C16: 1 | D16: 2 | E16: 21 | F16: 37 | G16: 33 | H16: 21 | I16: 26 | J16: 5 | K16: 0 | L16: 23 | M16: 26 | N16: 24 | O16: 21 | P16: 24 | Q16: 4 | R16: 1 | S16: 29 | T16: 21 | U16: 40 | V16: 32 | W16: 15 | X16: 2 | Y16: 2 | Z16: 30 | AA16: 19 | AB16: 26 | AC16: 29 | AD16: 24 | AE16: 2 | AF16: 0 | AG16: 0 | AH16: 540 | AI16: 13.32%
B17: 13:00:00 | C17: 1 | D17: 0 | E17: 24 | F17: 23 | G17: 17 | H17: 21 | I17: 8 | J17: 1 | K17: 1 | L17: 23 | M17: 26 | N17: 19 | O17: 15 | P17: 9 | Q17: 0 | R17: 1 | S17: 25 | T17: 8 | U17: 28 | V17: 27 | W17: 9 | X17: 3 | Y17: 3 | Z17: 15 | AA17: 15 | AB17: 22 | AC17: 17 | AD17: 10 | AE17: 3 | AF17: 0 | AG17: 0 | AH17: 374 | AI17: 9.22%
B18: 14:00:00 | C18: 1 | D18: 0 | E18: 13 | F18: 24 | G18: 13 | H18: 13 | I18: 7 | J18: 0 | K18: 2 | L18: 22 | M18: 14 | N18: 13 | O18: 13 | P18: 8 | Q18: 2 | R18: 1 | S18: 17 | T18: 12 | U18: 11 | V18: 17 | W18: 11 | X18: 0 | Y18: 2 | Z18: 4 | AA18: 12 | AB18: 11 | AC18: 4 | AD18: 10 | AE18: 0 | AF18: 0 | AG18: 0 | AH18: 257 | AI18: 6.34%
B19: 15:00:00 | C19: 0 | D19: 1 | E19: 11 | F19: 17 | G19: 12 | H19: 13 | I19: 6 | J19: 2 | K19: 0 | L19: 14 | M19: 11 | N19: 13 | O19: 7 | P19: 8 | Q19: 1 | R19: 0 | S19: 15 | T19: 9 | U19: 8 | V19: 25 | W19: 3 | X19: 0 | Y19: 0 | Z19: 8 | AA19: 0 | AB19: 8 | AC19: 10 | AD19: 7 | AE19: 0 | AF19: 0 | AG19: 0 | AH19: 209 | AI19: 5.15%
B20: 16:00:00 | C20: 1 | D20: 0 | E20: 10 | F20: 11 | G20: 8 | H20: 17 | I20: 7 | J20: 1 | K20: 0 | L20: 23 | M20: 14 | N20: 12 | O20: 8 | P20: 7 | Q20: 1 | R20: 1 | S20: 21 | T20: 13 | U20: 10 | V20: 18 | W20: 2 | X20: 0 | Y20: 0 | Z20: 7 | AA20: 11 | AB20: 9 | AC20: 9 | AD20: 10 | AE20: 0 | AF20: 1 | AG20: 0 | AH20: 232 | AI20: 5.72%
B21: 17:00:00 | C21: 0 | D21: 0 | E21: 15 | F21: 14 | G21: 20 | H21: 7 | I21: 8 | J21: 0 | K21: 0 | L21: 13 | M21: 9 | N21: 12 | O21: 11 | P21: 12 | Q21: 1 | R21: 0 | S21: 12 | T21: 8 | U21: 14 | V21: 12 | W21: 11 | X21: 0 | Y21: 0 | Z21: 7 | AA21: 0 | AB21: 19 | AC21: 10 | AD21: 5 | AE21: 1 | AF21: 0 | AG21: 0 | AH21: 221 | AI21: 5.45%
B22: 18:00:00 | C22: 0 | D22: 2 | E22: 12 | F22: 8 | G22: 8 | H22: 7 | I22: 8 | J22: 1 | K22: 3 | L22: 7 | M22: 12 | N22: 10 | O22: 5 | P22: 6 | Q22: 0 | R22: 4 | S22: 11 | T22: 7 | U22: 9 | V22: 24 | W22: 3 | X22: 2 | Y22: 0 | Z22: 4 | AA22: 0 | AB22: 9 | AC22: 8 | AD22: 5 | AE22: 1 | AF22: 0 | AG22: 0 | AH22: 176 | AI22: 4.34%
B23: 19:00:00 | C23: 0 | D23: 0 | E23: 6 | F23: 4 | G23: 4 | H23: 9 | I23: 3 | J23: 1 | K23: 1 | L23: 7 | M23: 7 | N23: 3 | O23: 2 | P23: 2 | Q23: 1 | R23: 0 | S23: 9 | T23: 6 | U23: 5 | V23: 7 | W23: 5 | X23: 0 | Y23: 0 | Z23: 7 | AA23: 6 | AB23: 11 | AC23: 4 | AD23: 5 | AE23: 2 | AF23: 0 | AG23: 0 | AH23: 117 | AI23: 2.89%
B24: 20:00:00 | C24: 0 | D24: 0 | E24: 2 | F24: 3 | G24: 4 | H24: 1 | I24: 1 | J24: 2 | K24: 0 | L24: 1 | M24: 3 | N24: 4 | O24: 1 | P24: 1 | Q24: 0 | R24: 0 | S24: 4 | T24: 2 | U24: 3 | V24: 2 | W24: 1 | X24: 2 | Y24: 0 | Z24: 5 | AA24: 1 | AB24: 4 | AC24: 2 | AD24: 2 | AE24: 0 | AF24: 1 | AG24: 0 | AH24: 52 | AI24: 1.28%
B25: 21:00:00 | C25: 0 | D25: 0 | E25: 0 | F25: 0 | G25: 0 | H25: 2 | I25: 0 | J25: 0 | K25: 0 | L25: 0 | M25: 1 | N25: 2 | O25: 1 | P25: 0 | Q25: 0 | R25: 0 | S25: 1 | T25: 2 | U25: 5 | V25: 0 | W25: 0 | X25: 1 | Y25: 0 | Z25: 2 | AA25: 5 | AB25: 0 | AC25: 0 | AD25: 0 | AE25: 0 | AF25: 0 | AG25: 0 | AH25: 22 | AI25: 0.54%
B26: 22:00:00 | C26: 0 | D26: 0 | E26: 0 | F26: 0 | G26: 0 | H26: 3 | I26: 0 | J26: 0 | K26: 1 | L26: 0 | M26: 0 | N26: 1 | O26: 0 | P26: 0 | Q26: 0 | R26: 0 | S26: 0 | T26: 0 | U26: 0 | V26: 0 | W26: 0 | X26: 0 | Y26: 0 | Z26: 0 | AA26: 0 | AB26: 0 | AC26: 0 | AD26: 0 | AE26: 1 | AF26: 0 | AG26: 0 | AH26: 6 | AI26: 0.15%
B27: 23:00:00 | C27: 0 | D27: 0 | E27: 0 | F27: 1 | G27: 0 | H27: 1 | I27: 0 | J27: 0 | K27: 0 | L27: 0 | M27: 2 | N27: 0 | O27: 1 | P27: 0 | Q27: 0 | R27: 0 | S27: 0 | T27: 0 | U27: 0 | V27: 0 | W27: 0 | X27: 0 | Y27: 0 | Z27: 0 | AA27: 0 | AB27: 0 | AC27: 0 | AD27: 0 | AE27: 1 | AF27: 0 | AG27: 0 | AH27: 6 | AI27: 0.15%
B28: TOTAL | C28: =SUM(C4:C27) -> 16 | D28: =SUM(D4:D27) -> 8 | E28: 230 | F28: 267 | G28: 219 | H28: 208 | I28: 157 | J28: 21 | K28: 11 | L28: 254 | M28: 241 | N28: 228 | O28: 157 | P28: 141 | Q28: 19 | R28: 16 | S28: 248 | T28: 163 | U28: 221 | V28: 232 | W28: 144 | X28: 19 | Y28: 10 | Z28: 164 | AA28: 110 | AB28: 198 | AC28: 178 | AD28: 156 | AE28: 17 | AF28: 2 | AG28: 0 | AH28: 4055 | AI28: 100.00%

Sheet ATENDIDAS MES AÑO
C2: LLAMADAS ATENDIDAS 2023-2024
C4: LLAMADAS | D4: ALARMAK | E4: VIDEO | I4: LLAMADAS | J4: ALARMAK | K4: VIDEO
B5: ENERO | C5: 4348 | D5: 54 | E5: 14 | H5: ENERO | I5: =5077+19 -> 5096 | J5: 261 | K5: 19
B6: FEBRERO | C6: 4932 | D6: 70 | E6: 14 | H6: FEBRERO | I6: =5310+34 -> 5344 | J6: 200 | K6: 15
B7: MARZO | C7: 4277 | D7: 68 | E7: 17 | H7: MARZO | I7: =4224+14 -> 4238 | J7: 3793 | K7: 12
B8: ABRIL | C8: 3696 | D8: 40 | E8: 12 | H8: ABRIL | I8: =4363+17 -> 4380 | J8: 179 | K8: 7
B9: MAYO | C9: 5372 | D9: 0 | E9: 18 | H9: MAYO | I9: =5425+27 -> 5452 | J9: 263 | K9: 1
B10: JUNIO | C10: 4014 | D10: 335 | E10: 17 | H10: JUNIO | I10: =4032+23 -> 4055 | J10: 165 | K10: 2
B11: JULIO | C11: 3528 | D11: 304 | E11: 14 | H11: JULIO | I11: =4884+38 -> 4922 | J11: 173 | K11: 0
B12: AGOSTO | C12: =3930+28 -> 3958 | D12: 312 | E12: 7 | H12: AGOSTO | I12: =4473+80 -> 4553 | J12: 130 | K12: 1
B13: SEPTIEMBRE | C13: =3992+28 -> 4020 | D13: 275 | E13: 20 | H13: SEPTIEMBRE
B14: OCTUBRE | C14: =4569+20 -> 4589 | D14: 433 | E14: 12
B15: NOVIEMBRE | C15: =5440+20 -> 5460 | D15: 446 | E15: 11
B16: DICIEMBRE | C16: =3434+25 -> 3459 | D16: 318 | E16: 10
C17: =SUM(C5:C16) -> 51653
